Workbook

Sheet Sheet1 (2)
F1: 三院区用量汇总表
D2: =ROR(A1) ->  | F2: 调料类（预算金额95.2万）
A3: 序号 | B3: 品名 | C3: 参考品牌 | D3: 产品质量要求 | E3: 规格 | F3: 单位 | G3: 服务期内暂定数量（湖滨） | H3: 服务期内暂定数量（钱塘） | I3: 服务期内暂定数量（西溪） | J3: 合计用量 | K3: 预算单价（元） | L3: 合计金额（元） | M3: 备注
A4: =ROW(A1) -> 1 | B4: 糯米料酒 | C4: 湖羊及同档次以上 | D4: 产品保质期不得少于出厂保质期的三分之二 | E4: 350g*40包 | F4: 箱 | G4: 600 | H4: 400 | I4: 280 | J4: =G4+H4+I4 -> 1280 | M4: 固定单价
A5: =ROW(A2) -> 2 | B5: 西湖味精 | C5: 西湖及同档次以上 | D5: 产品保质期不得少于出厂保质期的三分之二 | E5: 2.5kg/包*4包 | F5: 袋 | G5: 360 | H5: 200 | I5: 150 | J5: 710 | M5: 固定单价
A6: 3 | B6: 港盛麻油 | C6: 港盛及同档次以上 | D6: 产品保质期不得少于出厂保质期的三分之二 | E6: 237ml/12瓶 | F6: 箱 | G6: 240 | H6: 180 | I6: 90 | J6: 510 | M6: 固定单价
A7: 4 | B7: 广西白糖 | C7: 甜源及同档次以上 | D7: 产品保质期不得少于出厂保质期的三分之二 | E7: 50㎏ | F7: 袋 | G7: 150 | H7: 100 | I7: 60 | J7: 310 | M7: 固定单价
A8: 5 | B8: 海天蚝油 | C8: 海天及同档次以上 | D8: 产品保质期不得少于出厂保质期的三分之二 | E8: 520ml*12瓶 | F8: 箱 | G8: 330 | H8: 100 | I8: 10 | J8: 440 | M8: 固定单价
A9: 6 | B9: 港盛辣油 | C9: 港盛及同档次以上 | D9: 产品保质期不得少于出厂保质期的三分之二 | E9: 160ml*21瓶 | F9: 箱 | G9: 85 | H9: 70 | I9: 30 | J9: 185 | M9: 固定单价
A10: 7 | B10: 海天生抽 | C10: 海天及同档次以上 | D10: 产品保质期不得少于出厂保质期的三分之二 | E10: 1.9l/6瓶 | F10: 箱 | G10: 340 | H10: 350 | I10: 150 | J10: 840 | M10: 固定单价
A11: 8 | B11: 海天老抽王 | C11: 海天及同档次以上 | D11: 产品保质期不得少于出厂保质期的三分之二 | E11: 1.9L*6瓶 | F11: 箱 | G11: 140 | H11: 180 | I11: 10 | J11: 330 | M11: 固定单价
A12: 9 | B12: 湖羊酱油 | C12: 湖羊及同档次以上 | D12: 产品保质期不得少于出厂保质期的三分之二 | E12: 400ml/包*30包 | F12: 箱 | G12: 80 | H12: 80 | I12: 120 | J12: 280 | M12: 固定单价
A13: 10 | B13: 黑芝麻馅料 | C13: 早田及同档次以上 | D13: 产品保质期不得少于出厂保质期的三分之二 | E13: 5㎏ | F13: 包 | G13: 20 | H13: 20 | I13: 5 | J13: 45 | M13: 固定单价
A14: 11 | B14: 白钻内酯粉 | C14: 百钻及同档次以上 | D14: 产品保质期不得少于出厂保质期的三分之二 | E14: 1㎏ | F14: 包 | G14: 25 | H14: 20 | I14: 5 | J14: 50 | M14: 固定单价
A15: 12 | B15: 进口风车生粉 | C15: 进口风车及同档次以上 | D15: 产品保质期不得少于出厂保质期的三分之二 | E15: 20㎏ | F15: 包 | G15: 100 | H15: 80 | I15: 60 | J15: 240 | M15: 固定单价
A16: 13 | B16: 金酸汤调味酱 | C16: 家乐及同档次以上 | D16: 产品保质期不得少于出厂保质期的三分之二 | E16: 960g*6包 | F16: 箱 | G16: 20 | H16: 10 | I16: 10 | J16: 40 | M16: 固定单价
A17: 14 | B17: 雪涛细盐 | C17: 雪涛及同档次以上 | D17: 产品保质期不得少于出厂保质期的三分之二 | E17: 500g*40包 | F17: 箱 | G17: 260 | H17: 100 | I17: 120 | J17: 480 | M17: 固定单价
A18: 15 | B18: 美味鲜酱油 | C18: 厨邦及同档次以上 | D18: 产品保质期不得少于出厂保质期的三分之二 | E18: 1.68L*6桶 | F18: 箱 | G18: 45 | H18: 30 | I18: 45 | J18: 120 | M18: 固定单价
A19: 16 | B19: 妙发沙司 | C19: 妙发、梅林及同档次以上 | D19: 产品保质期不得少于出厂保质期的三分之二 | E19: 397g*24瓶 | F19: 箱 | G19: 90 | H19: 40 | I19: 20 | J19: 150 | M19: 固定单价
A20: 17 | B20: 南乳汁 | C20: 咸亨及同档次以上 | D20: 产品保质期不得少于出厂保质期的三分之二 | E20: 500g*12瓶 | F20: 箱 | G20: 50 | H20: 60 | I20: 10 | J20: 120 | M20: 固定单价
A21: 18 | B21: 三五麻辣烫 | C21: 三五及同档次以上 | D21: 产品保质期不得少于出厂保质期的三分之二 | E21: 150g60包 | F21: 箱 | G21: 50 | H21: 30 | I21: 20 | J21: 100 | M21: 固定单价
A22: 19 | B22: 双鱼米醋 | C22: 双鱼及同档次以上 | D22: 产品保质期不得少于出厂保质期的三分之二 | E22: 250ml*60包 | F22: 箱 | G22: 60 | H22: 60 | I22: 50 | J22: 170 | M22: 固定单价
A23: 20 | B23: 奉化白醋 | C23: 奉化及同档次以上 | D23: 产品保质期不得少于出厂保质期的三分之二 | E23: 500ml*20瓶 | F23: 箱 | G23: 20 | H23: 15 | I23: 10 | J23: 45 | M23: 固定单价
A24: 21 | B24: 四特酒 | C24: 四特及同档次以上 | D24: 产品保质期不得少于出厂保质期的三分之二 | E24: 500ml*12瓶 | F24: 箱 | G24: 60 | H24: 10 | I24: 5 | J24: 75 | M24: 固定单价
A25: 22 | B25: 白胡椒粉 | C25: 国良及同档次以上 | D25: 产品保质期不得少于出厂保质期的三分之二 | E25: 200g*40包 | F25: 箱 | G25: 15 | H25: 15 | I25: 10 | J25: 40 | M25: 固定单价
A26: 23 | B26: 丹丹红油豆瓣 | C26: 丹丹及同档次以上 | D26: 产品保质期不得少于出厂保质期的三分之二 | E26: 10㎏ | F26: 箱 | G26: 25 | H26: 25 | I26: 15 | J26: 65 | M26: 固定单价
A27: 24 | B27: 国良蒸肉粉 | C27: 国良及同档次以上 | D27: 产品保质期不得少于出厂保质期的三分之二 | E27: 45包*120g | F27: 箱 | G27: 25 | H27: 25 | I27: 10 | J27: 60 | M27: 固定单价
A28: 25 | B28: 家乐浓缩鸡汁 | C28: 家乐及同档次以上 | D28: 产品保质期不得少于出厂保质期的三分之二 | E28: 1㎏*6瓶 | F28: 箱 | G28: 15 | H28: 10 | I28: 5 | J28: 30 | M28: 固定单价
A29: 26 | B29: 西湖鸡精 | C29: 西湖及同档次以上 | D29: 产品保质期不得少于出厂保质期的三分之二 | E29: 1kg*10包 | F29: 箱 | G29: 50 | H29: 120 | I29: 60 | J29: 230 | M29: 固定单价
A30: 27 | B30: 湖羊黄豆酱 | C30: 湖羊及同档次以上 | D30: 产品保质期不得少于出厂保质期的三分之二 | E30: 225g*30盒 | F30: 箱 | G30: 10 | H30: 10 | I30: 5 | J30: 25 | M30: 固定单价
A31: 28 | B31: 老干妈豆豉辣椒油 | C31: 老干妈及同档次以上 | D31: 产品保质期不得少于出厂保质期的三分之二 | E31: 280g*24瓶 | F31: 箱 | G31: 12 | H31: 12 | I31: 10 | J31: 34 | M31: 固定单价
A32: 29 | B32: 李锦记海鲜酱 | C32: 李锦记及同档次以上 | D32: 产品保质期不得少于出厂保质期的三分之二 | E32: 240g*12瓶 | F32: 箱 | G32: 60 | H32: 30 | I32: 20 | J32: 110 | M32: 固定单价
A33: 30 | B33: 李锦记香辣酱 | C33: 李锦记及同档次以上 | D33: 产品保质期不得少于出厂保质期的三分之二 | E33: 205g*12瓶 | F33: 箱 | G33: 60 | H33: 30 | I33: 20 | J33: 110 | M33: 固定单价
A34: 31 | B34: 海天蒜蓉酱 | C34: 海天及同档次以上 | D34: 产品保质期不得少于出厂保质期的三分之二 | E34: 230ml*15瓶 | F34: 箱 | G34: 15 | H34: 5 | I34: 5 | J34: 25 | M34: 固定单价
A35: 32 | B35: 海天蒸鱼豉油 | C35: 海天及同档次以上 | D35: 产品保质期不得少于出厂保质期的三分之二 | E35: 1.75L*6桶 | F35: 箱 | G35: 10 | H35: 5 | I35: 10 | J35: 25 | M35: 固定单价
A36: 33 | B36: 藤椒油 | C36: 幺麻子及同档次以上 | D36: 产品保质期不得少于出厂保质期的三分之二 | E36: 250ml*10瓶 | F36: 箱 | G36: 40 | H36: 20 | I36: 20 | J36: 80 | M36: 固定单价
A37: =ROW(A34) -> 34 | B37: 盐焗粉 | C37: 美味源及同档次以上 | D37: 产品保质期不得少于出厂保质期的三分之二 | E37: 250g | F37: 盒 | G37: 100 | H37: 50 | I37: 50 | J37: 200 | M37: 固定单价
A38: 35 | B38: 三和四美豆腐乳 | C38: 三和四美及同档次以上 | D38: 产品保质期不得少于出厂保质期的三分之二 | E38: 12瓶*500g | F38: 箱 | G38: 25 | H38: 20 | I38: 10 | J38: 55 | M38: 固定单价
A39: 36 | B39: 麻辣鲜 | C39: 王守义及同档次以上 | D39: 产品保质期不得少于出厂保质期的三分之二 | E39: 102g*48包 | F39: 箱 | G39: 25 | H39: 20 | I39: 20 | J39: 65 | M39: 固定单价
A40: 37 | B40: 十三香 | C40: 王守义及同档次以上 | D40: 产品保质期不得少于出厂保质期的三分之二 | E40: 45g*10盒 | F40: 盒 | G40: 60 | H40: 50 | I40: 30 | J40: 140 | M40: 固定单价
A41: 38 | B41: 黄面包糠 | C41: 百利及同档次以上 | D41: 产品保质期不得少于出厂保质期的三分之二 | E41: 750g | F41: 包 | G41: 12 | H41: 12 | I41: 10 | J41: 34 | M41: 固定单价
A42: 39 | B42: 花生酱 | C42: 顶好及同档次以上 | D42: 产品保质期不得少于出厂保质期的三分之二 | E42: 200g | F42: 瓶 | G42: 110 | H42: 50 | I42: 50 | J42: 210 | M42: 固定单价
A43: 40 | B43: 甜面酱 | C43: 六月香及同档次以上 | D43: 产品保质期不得少于出厂保质期的三分之二 | E43: 250g | F43: 瓶 | G43: 110 | H43: 50 | I43: 50 | J43: 210 | M43: 固定单价
A44: 41 | B44: 黄灯笼椒酱 | C44: 左泉及同档次以上 | D44: 产品保质期不得少于出厂保质期的三分之二 | E44: 1kg*6桶 | F44: 箱 | G44: 110 | H44: 80 | I44: 10 | J44: 200 | M44: 固定单价
A45: 42 | B45: 桶装海天黄豆酱 | C45: 海天及同档次以上 | D45: 产品保质期不得少于出厂保质期的三分之二 | E45: 6kg | F45: 桶 | G45: 15 | H45: 20 | I45: 30 | J45: 65 | M45: 固定单价
A46: 43 | B46: 椒盐 | C46: 味好美及同档次以上 | D46: 产品保质期不得少于出厂保质期的三分之二 | E46: 750g | F46: 瓶 | G46: 15 | H46: 15 | I46: 5 | J46: 35 | M46: 固定单价
A47: 44 | B47: 芥末 | C47: 珍鲜达及同档次以上 | D47: 产品保质期不得少于出厂保质期的三分之二 | E47: 43g | F47: 支 | G47: 160 | H47: 60 | I47: 20 | J47: 240 | M47: 固定单价
A48: 45 | B48: 咸蛋黄酱 | C48: 海鸭蛋黄酱及同档次以上 | D48: 产品保质期不得少于出厂保质期的三分之二 | E48: 210g | F48: 瓶 | G48: 110 | H48: 50 | I48: 50 | J48: 210 | M48: 固定单价
A49: 46 | B49: 咖喱粉（国良） | C49: 国良及同档次以上 | D49: 产品保质期不得少于出厂保质期的三分之二 | E49: 200g | F49: 包 | G49: 15 | H49: 15 | I49: 10 | J49: 40 | M49: 固定单价
A50: 47 | B50: 孜然粉 国良 | C50: 国良及同档次以上 | D50: 产品保质期不得少于出厂保质期的三分之二 | E50: 200g | F50: 包 | G50: 110 | H50: 110 | I50: 50 | J50: 270 | M50: 固定单价
A51: 48 | B51: 酥肉粉 | C51: 国良及同档次以上 | D51: 产品保质期不得少于出厂保质期的三分之二 | E51: 100g | F51: 包 | G51: 600 | H51: 600 | I51: 200 | J51: 1400 | M51: 固定单价
A52: 49 | B52: XO酱 | C52: 李锦记及同档次以上 | D52: 产品保质期不得少于出厂保质期的三分之二 | E52: 80g | F52: 瓶 | G52: 15 | H52: 10 | I52: 5 | J52: 30 | M52: 固定单价
A53: 50 | B53: 雄狮牌吉士粉 | C53: 雄狮牌及同档次以上 | D53: 产品保质期不得少于出厂保质期的三分之二 | E53: 3kg | F53: 桶 | G53: 15 | H53: 10 | I53: 6 | J53: 31 | M53: 固定单价
A54: 51 | B54: 丘比日式油醋汁 | C54: 丘比及同档次以上 | D54: 产品保质期不得少于出厂保质期的三分之二 | E54: 1.5L | F54: 瓶 | G54: 110 | H54: 80 | I54: 50 | J54: 240 | M54: 固定单价
A55: 52 | B55: 丘比千岛酱 | C55: 丘比及同档次以上 | D55: 产品保质期不得少于出厂保质期的三分之二 | E55: 1.1Kg | F55: 瓶 | G55: 110 | H55: 80 | I55: 60 | J55: 250 | M55: 固定单价
A56: 53 | B56: 丘比芝麻沙拉酱 | C56: 丘比及同档次以上 | D56: 产品保质期不得少于出厂保质期的三分之二 | E56: 1.5L | F56: 瓶 | G56: 40 | H56: 20 | I56: 20 | J56: 80 | M56: 固定单价
A57: 54 | B57: 丘比沙拉酱【甜口味】 | C57: 丘比及同档次以上 | D57: 产品保质期不得少于出厂保质期的三分之二 | E57: 1.5L | F57: 瓶 | G57: 150 | H57: 60 | I57: 50 | J57: 260 | M57: 固定单价
A58: 55 | B58: 宝飞-小米辣 | C58: 宝飞及同档次以上 | D58: 产品保质期不得少于出厂保质期的三分之二 | E58: 2kg*6包 | F58: 箱 | G58: 30 | H58: 20 | I58: 10 | J58: 60 | M58: 固定单价
A59: 56 | B59: 宝飞精制剁椒酱 | C59: 宝飞及同档次以上 | D59: 产品保质期不得少于出厂保质期的三分之二 | E59: 1kg*6瓶 | F59: 箱 | G59: 30 | H59: 30 | I59: 10 | J59: 70 | M59: 固定单价
A60: 57 | B60: 泰国木薯粉 | C60: 水妈妈及同档次以上 | D60: 产品保质期不得少于出厂保质期的三分之二 | E60: 500g*20包 | F60: 箱 | G60: 10 | H60: 10 | I60: 5 | J60: 25 | M60: 固定单价
A61: 58 | B61: 阳江豆豉 | C61: 江阳及同档次以上 | D61: 产品保质期不得少于出厂保质期的三分之二 | E61: 60g | F61: 盒 | G61: 100 | H61: 80 | I61: 40 | J61: 220 | M61: 固定单价
A62: 59 | B62: 香料包 | C62: 卞师傅及同档次以上 | D62: 产品保质期不得少于出厂保质期的三分之二 | E62: 20个 | F62: 板 | G62: 20 | H62: 20 | I62: 20 | J62: 60 | M62: 固定单价
A63: 60 | B63: 王中王火腿肠 | C63: 王中王及同档次以上 | D63: 产品保质期不得少于出厂保质期的三分之二 | E63: 35g*70支 | F63: 箱 | G63: 20 | H63: 10 | I63: 5 | J63: 35 | M63: 固定单价
A64: 61 | B64: 紫菜袋料包 | C64: 贝仙及同档次以上 | D64: 产品保质期不得少于出厂保质期的三分之二 | E64: 120包*10g | F64: 箱 | G64: 15 | H64: 10 | I64: 5 | J64: 30 | M64: 固定单价
A65: 62 | B65: 叉烧酱 | C65: 李锦记及同档次以上 | D65: 产品保质期不得少于出厂保质期的三分之二 | E65: 240g*12瓶 | F65: 箱 | G65: 15 | H65: 10 | I65: 5 | J65: 30 | M65: 固定单价
A66: 63 | B66: 香糟卤 | C66: 咸亨及同档次以上 | D66: 产品保质期不得少于出厂保质期的三分之二 | E66: 500ml*12瓶 | F66: 箱 | G66: 20 | H66: 10 | I66: 5 | J66: 35 | M66: 固定单价
A67: 64 | B67: 御膳纯芝麻油 | C67: 御膳及同档次以上 | D67: 产品保质期不得少于出厂保质期的三分之二 | E67: 450ml*12瓶 | F67: 箱 | G67: 10 | H67: 5 | I67: 10 | J67: 10 | M67: 固定单价
A68: 65 | B68: 香菇酱 | C68: 惠厨乐及同档次以上 | D68: 产品保质期不得少于出厂保质期的三分之二 | E68: 5KG | F68: 桶 | G68: 10 | H68: 1 | I68: 8 | J68: =G68+H68+I68 -> 19 | M68: 固定单价
A69: 66 | B69: 牛肉酱 | C69: 惠厨乐及同档次以上 | D69: 产品保质期不得少于出厂保质期的三分之二 | E69: 6.5KG | F69: 桶 | G69: 10 | H69: 1 | I69: 8 | J69: 19 | M69: 固定单价
A70: 67 | B70: 绵白糖 | C70: 福源及同档次以上 | D70: 产品保质期不得少于出厂保质期的三分之二 | E70: 50kg | F70: 包 | G70: 5 | I70: 5 | J70: 10 | M70: 固定单价
A71: 68 | B71: 草菇老抽 | C71: 海天及同档次以上 | D71: 产品保质期不得少于出厂保质期的三分之二 | E71: 1.9L*6桶 | F71: 箱 | G71: 50 | H71: 10 | I71: 70 | J71: 130 | M71: 固定单价
A72: 69 | B72: 花生酱 | C72: 惠厨乐及同档次以上 | D72: 产品保质期不得少于出厂保质期的三分之二 | E72: 14KG | F72: 桶 | G72: 10 | H72: 1 | I72: 10 | J72: 21 | M72: 固定单价
A73: 70 | B73: 海天排骨酱 | C73: 海天及同档次以上 | D73: 产品保质期不得少于出厂保质期的三分之二 | E73: 260g*15瓶 | F73: 箱 | G73: 10 | H73: 1 | I73: 10 | J73: 21 | M73: 固定单价
A74: 71 | B74: 海南黄灯笼辣椒酱 | C74: 健裕及同档次以上 | D74: 产品保质期不得少于出厂保质期的三分之二 | E74: 700g*12瓶 | F74: 箱 | G74: 10 | H74: 1 | I74: 5 | J74: 16 | M74: 固定单价
A75: 72 | B75: 山西老陈醋 | C75: 晋霸 | D75: 产品保质期不得少于出厂保质期的三分之二 | E75: 2.5 kg/桶 | F75: 桶 | G75: 10 | H75: 1 | I75: 30 | J75: 41 | M75: 固定单价
A76: 73 | B76: 安佳黄油 | C76: 安佳及同档次以上 | D76: 产品保质期不得少于出厂保质期的三分之二 | E76: 227g/块 | F76: 块 | H76: 60 | J76: 60 | M76: 固定单价
A77: 74 | B77: 桶装耗油 | C77: 海天及同档次以上 | D77: 产品保质期不得少于出厂保质期的三分之二 | E77: 6kg/2桶 | F77: 箱 | G77: 30 | H77: 30 | I77: 40 | J77: 100 | M77: 固定单价
A78: 75 | B78: 车轮牌黄奶油 | C78: 车轮牌及同档次以上 | D78: 产品保质期不得少于出厂保质期的三分之二 | E78: 16KG/桶 | F78: 桶 | H78: 5 | I78: 3 | J78: 8
L79: =SUM(L4:L78) -> 0
A80: 饮料类（预算金额52.1万）
A81: 序号 | B81: 品名 | C81: 参考品牌 | D81: 产品质量要求 | E81: 规格 | F81: 单位 | G81: 服务期内暂定数量（湖滨） | H81: 服务期内暂定数量（钱塘） | I81: 服务期内暂定数量（西溪） | J81: 合计用量 | K81: 预算单价（元） | L81: 合计金额（元） | M81: 备注
A82: 76 | B82: 茶π | C82: 农夫山泉 | D82: 产品保质期不得少于出厂保质期的三分之二 | E82: 500ml*15瓶 | F82: 箱 | G82: 40 | H82: 20 | I82: 150 | J82: =G82+H82+I82 -> 210 | M82: 固定单价
A83: 77 | B83: 大雪碧 | C83: 可口可乐 | D83: 产品保质期不得少于出厂保质期的三分之二 | E83: 2L*6瓶 | F83: 箱 | G83: 15 | H83: 10 | I83: 10 | J83: 35 | M83: 固定单价
A84: 78 | B84: 大果粒橙 | C84: 美汁源 | D84: 产品保质期不得少于出厂保质期的三分之二 | E84: 1.25L*12瓶 | F84: 箱 | G84: 15 | H84: 10 | I84: 10 | J84: 35 | M84: 固定单价
A85: 79 | B85: 果粒橙 | C85: 美汁源 | D85: 产品保质期不得少于出厂保质期的三分之二 | E85: 450ml*12瓶 | F85: 箱 | G85: 130 | H85: 80 | I85: 50 | J85: 260 | M85: 固定单价
A86: 80 | B86: 红牛 | C86: 红牛 | D86: 产品保质期不得少于出厂保质期的三分之二 | E86: 250ml*24瓶 | F86: 箱 | G86: 85 | H86: 50 | I86: 60 | J86: 195 | M86: 固定单价
A87: 81 | B87: 激活 | C87: 娃哈哈 | D87: 产品保质期不得少于出厂保质期的三分之二 | E87: 600ml*15瓶 | F87: 箱 | G87: 80 | H87: 50 | I87: 60 | J87: 190 | M87: 固定单价
A88: 82 | B88: 康师傅冰红茶 | C88: 康师傅 | D88: 产品保质期不得少于出厂保质期的三分之二 | E88: 550ml*15瓶 | F88: 箱 | G88: 50 | H88: 50 | I88: 20 | J88: 120 | M88: 固定单价
A89: 83 | B89: 康师傅绿茶 | C89: 康师傅 | D89: 产品保质期不得少于出厂保质期的三分之二 | E89: 550ml*15瓶 | F89: 箱 | G89: 50 | H89: 50 | I89: 20 | J89: 120 | M89: 固定单价
A90: 84 | B90: 可口可乐 | C90: 可口可乐 | D90: 产品保质期不得少于出厂保质期的三分之二 | E90: 500ml*24瓶 | F90: 箱 | G90: 150 | H90: 150 | I90: 120 | J90: 420 | M90: 固定单价
A91: 85 | B91: 大可口可乐 | C91: 可口可乐 | D91: 产品保质期不得少于出厂保质期的三分之二 | E91: 2L*6瓶 | F91: 箱 | G91: 30 | H91: 30 | I91: 10 | J91: 70 | M91: 固定单价
A92: 86 | B92: 脉动 | C92: 脉动 | D92: 产品保质期不得少于出厂保质期的三分之二 | E92: 600ml*15瓶 | F92: 箱 | G92: 50 | H92: 50 | I92: 150 | J92: 250 | M92: 固定单价
A93: 87 | B93: 农夫果园 | C93: 农夫山泉 | D93: 产品保质期不得少于出厂保质期的三分之二 | E93: 500ml*15瓶 | F93: 箱 | G93: 50 | H93: 50 | I93: 30 | J93: 130 | M93: 固定单价
A94: 88 | B94: 农夫山泉 | C94: 农夫山泉 | D94: 产品保质期不得少于出厂保质期的三分之二 | E94: 550ml*24瓶 | F94: 箱 | G94: 1000 | H94: 1000 | I94: 800 | J94: 2800 | M94: 固定单价
A95: 89 | B95: 农夫山泉 | C95: 农夫山泉 | D95: 产品保质期不得少于出厂保质期的三分之二 | E95: 380ml*24瓶 | F95: 箱 | G95: 2000 | H95: 1000 | I95: 200 | J95: 3200 | M95: 固定单价
A96: 90 | B96: 雀巢咖啡 | C96: 雀巢 | D96: 产品保质期不得少于出厂保质期的三分之二 | E96: 268ml*15瓶 | F96: 箱 | G96: 50 | H96: 30 | I96: 80 | J96: 160 | M96: 固定单价
A97: 91 | B97: 水溶C | C97: 农夫山泉 | D97: 产品保质期不得少于出厂保质期的三分之二 | E97: 445ml*15瓶 | F97: 箱 | G97: 150 | H97: 60 | I97: 150 | J97: 360 | M97: 固定单价
A98: 92 | B98: 娃哈哈八宝粥 | C98: 娃哈哈 | D98: 产品保质期不得少于出厂保质期的三分之二 | E98: 360g*12罐 | F98: 箱 | G98: 200 | H98: 50 | I98: 100 | J98: 350 | M98: 固定单价
A99: 93 | B99: 旺仔牛奶 | C99: 旺仔 | D99: 产品保质期不得少于出厂保质期的三分之二 | E99: 245ml*12罐 | F99: 箱 | G99: 30 | H99: 20 | I99: 100 | J99: 150 | M99: 固定单价
A100: 94 | B100: 东方树叶 | C100: 农夫山泉 | D100: 产品保质期不得少于出厂保质期的三分之二 | E100: 500ml*15瓶 | F100: 箱 | G100: 100 | H100: 50 | I100: 150 | J100: 300 | M100: 固定单价
A101: 95 | B101: 味全 | C101: 味全 | D101: 产品保质期不得少于出厂保质期的三分之二 | E101: 500ml*15瓶 | F101: 箱 | G101: 160 | H101: 50 | I101: 100 | J101: 310 | M101: 固定单价
A102: 96 | B102: 小茗同学 | C102: 统一 | D102: 产品保质期不得少于出厂保质期的三分之二 | E102: 480ml*15瓶 | F102: 箱 | G102: 60 | H102: 30 | I102: 50 | J102: 140 | M102: 固定单价
A103: 97 | B103: 雪碧 | C103: 可口可乐 | D103: 产品保质期不得少于出厂保质期的三分之二 | E103: 500ml*24瓶 | F103: 箱 | G103: 80 | H103: 80 | I103: 80 | J103: 240 | M103: 固定单价
A104: 98 | B104: 椰汁铁罐 | C104: 椰树 | D104: 产品保质期不得少于出厂保质期的三分之二 | E104: 245ml*24瓶 | F104: 箱 | G104: 150 | H104: 50 | I104: 100 | J104: 300 | M104: 固定单价
A105: 99 | B105: 营养快线 | C105: 娃哈哈 | D105: 产品保质期不得少于出厂保质期的三分之二 | E105: 500ml*15瓶 | F105: 箱 | G105: 150 | H105: 50 | I105: 80 | J105: 280 | M105: 固定单价
A106: 100 | B106: 三得利乌龙茶 | C106: 三得利 | D106: 产品保质期不得少于出厂保质期的三分之二 | E106: 500ml*15瓶 | F106: 箱 | G106: 100 | H106: 50 | I106: 100 | J106: 250 | M106: 固定单价
A107: 101 | B107: 无糖可口可乐 | C107: 可口可乐 | D107: 产品保质期不得少于出厂保质期的三分之二 | E107: 330ml*24瓶 | F107: 箱 | G107: 50 | I107: 80 | J107: 130 | M107: 固定单价
A108: 102 | B108: 百岁山矿泉水 | C108: 百岁山 | D108: 产品保质期不得少于出厂保质期的三分之二 | E108: 570ml*24瓶 | F108: 箱 | I108: 50 | J108: 50 | M108: 固定单价
A109: 103 | B109: 王老吉 | C109: 王老吉 | D109: 产品保质期不得少于出厂保质期的三分之二 | E109: 310ml*24听 | F109: 箱 | G109: 50 | H109: 20 | I109: 50 | J109: 120 | M109: 固定单价
A110: 104 | B110: 娃哈哈纯净水 | C110: 娃哈哈 | D110: 产品保质期不得少于出厂保质期的三分之二 | E110: 596ml*24瓶 | F110: 箱 | G110: 50 | H110: 5 | I110: 100 | J110: 155 | M110: 固定单价
A111: 105 | B111: 娃哈哈AD钙奶 | C111: 娃哈哈 | D111: 产品保质期不得少于出厂保质期的三分之二 | E111: 220g*24瓶 | F111: 箱 | G111: 50 | H111: 5 | I111: 60 | J111: 115 | M111: 固定单价
A112: 106 | B112: 娃哈哈弱碱苏打水 | C112: 娃哈哈 | D112: 产品保质期不得少于出厂保质期的三分之二 | E112: 500ml*15瓶 | F112: 箱 | G112: 50 | H112: 5 | I112: 20 | J112: 75 | M112: 固定单价
A113: 107 | B113: 柚香谷宋柚汁 | C113: 柚香谷 | D113: 产品保质期不得少于出厂保质期的三分之二 | E113: 300g*20瓶 | F113: 箱 | G113: 50 | I113: 30 | J113: 80 | M113: 固定单价
A114: 108 | B114: 元气森林-自在水 | C114: 元气森林 | D114: 产品保质期不得少于出厂保质期的三分之二 | E114: 500ml*15瓶 | F114: 箱 | G114: 50 | I114: 50 | J114: 100 | M114: 固定单价
A115: 109 | B115: 味全每日C果汁 | C115: 味全 | D115: 产品保质期不得少于出厂保质期的三分之二 | E115: 300ml*12瓶 | F115: 箱 | G115: 50 | H115: 10 | I115: 30 | J115: 90 | M115: 固定单价
A116: 110 | B116: 维他柠檬茶 | C116: 维他 | D116: 产品保质期不得少于出厂保质期的三分之二 | E116: 250ml*6盒 | F116: 组 | G116: 50 | H116: 5 | I116: 30 | J116: 85 | M116: 固定单价
A117: 111 | B117: 外星人电解质水 | C117: 元气森林 | D117: 产品保质期不得少于出厂保质期的三分之二 | E117: 500ml*15瓶 | F117: 箱 | G117: 50 | H117: 5 | I117: 30 | J117: 85 | M117: 固定单价
A118: 112 | B118: 元气森林-气泡水 | C118: 元气森林 | D118: 产品保质期不得少于出厂保质期的三分之二 | E118: 480ml*15瓶 | F118: 箱 | G118: 60 | I118: 30 | J118: 90 | M118: 固定单价
A119: 113 | B119: 佳得乐 | C119: 百事 | D119: 产品保质期不得少于出厂保质期的三分之二 | E119: 600ml*15瓶 | F119: 箱 | G119: 30 | H119: 5 | I119: 30 | J119: 65 | M119: 固定单价
A120: 114 | B120: 尖叫 | C120: 农夫山泉 | D120: 产品保质期不得少于出厂保质期的三分之二 | E120: 550ml*15瓶 | F120: 箱 | G120: 50 | H120: 5 | I120: 30 | J120: 85 | M120: 固定单价
A121: 115 | B121: 东鹏特饮 | C121: 东鹏 | D121: 产品保质期不得少于出厂保质期的三分之二 | E121: 500ml*24瓶 | F121: 箱 | G121: 50 | H121: 5 | I121: 30 | J121: 85 | M121: 固定单价
A122: 116 | B122: 大窑汽水 | C122: 大窑 | D122: 产品保质期不得少于出厂保质期的三分之二 | E122: 520ml*12瓶 | F122: 箱 | G122: 50 | H122: 5 | I122: 30 | J122: 85 | M122: 固定单价
L123: =SUM(L82:L122) -> 0
A125: 小菜类（预算金额152.8万）
A126: 序号 | B126: 品名 | C126: 参考品牌 | D126: 产品质量要求 | E126: 规格 | F126: 单位 | G126: 服务期内暂定数量（湖滨） | H126: 服务期内暂定数量（钱塘） | I126: 服务期内暂定数量（西溪） | J126: 合计用量 | K126: 预算单价（元） | L126: 合计金额（元） | M126: 备注
A127: 117 | B127: 榨菜丝 | C127: 杭帮、金博林及同档次以上 | D127: 产品保质期不得少于出厂保质期的三分之二 | E127: 4.5斤*6包 | F127: 箱 | G127: 220 | H127: 220 | I127: 120 | J127: =G127+H127+I127 -> 560 | M127: 固定单价
A128: 118 | B128: 八宝菜（家明） | C128: 家明及同档次以上 | D128: 产品保质期不得少于出厂保质期的三分之二 | E128: 12kg | F128: 箱 | G128: 110 | H128: 80 | I128: 80 | J128: 270 | M128: 固定单价
A129: 119 | B129: 八宝酱丁 | C129: 永超及同档次以上 | D129: 产品保质期不得少于出厂保质期的三分之二 | E129: 5㎏ | F129: 箱 | G129: 110 | H129: 80 | I129: 80 | J129: 270 | M129: 固定单价
A130: 120 | B130: 红油酸豆角 | C130: 永超及同档次以上 | D130: 产品保质期不得少于出厂保质期的三分之二 | E130: 4.5㎏ | F130: 箱 | G130: 110 | H130: 80 | I130: 80 | J130: 270 | M130: 固定单价
A131: 121 | B131: 杭帮榨菜 | C131: 杭帮及同档次以上 | D131: 产品保质期不得少于出厂保质期的三分之二 | E131: 50g*100包 | F131: 箱 | G131: 1200 | H131: 2000 | I131: 1000 | J131: 4200 | M131: 固定单价
A132: 122 | B132: 紫云堂雪菜王 | C132: 紫云堂及同档次以上 | D132: 产品保质期不得少于出厂保质期的三分之二 | E132: 150g*50包 | F132: 箱 | G132: 1200 | H132: 1200 | I132: 120 | J132: 2520 | M132: 固定单价
A133: 123 | B133: 李记乐宝酸菜 | C133: 李记乐宝及同档次以上 | D133: 产品保质期不得少于出厂保质期的三分之二 | E133: 250g*40包 | F133: 箱 | G133: 760 | H133: 300 | I133: 300 | J133: 1360 | M133: 固定单价
A134: 124 | B134: 都市小菜【榨菜芯.洋姜等】 | C134: 都市小菜及同档次以上 | D134: 产品保质期不得少于出厂保质期的三分之二 | E134: 25g*200包 | F134: 箱 | G134: 4000 | H134: 3000 | I134: 1000 | J134: 8000 | M134: 固定单价
A135: 125 | B135: 唯新特制肉酥 | C135: 唯新及同档次以上 | D135: 产品保质期不得少于出厂保质期的三分之二 | E135: 500g/包*50小包 | F135: 包 | G135: 220 | H135: 2000 | I135: 200 | J135: 2420 | M135: 固定单价
A136: 126 | B136: 唯新木糖醇肉酥 | C136: 唯新及同档次以上 | D136: 产品保质期不得少于出厂保质期的三分之二 | E136: 500g/包*50小包 | F136: 包 | G136: 0 | H136: 500 | I136: 50 | J136: 550 | M136: 固定单价
A137: 127 | B137: 红油笋丝 | C137: 永超及同档次以上 | D137: 产品保质期不得少于出厂保质期的三分之二 | E137: 5KG | F137: 箱 | G137: 20 | I137: 100 | J137: 120 | M137: 固定单价
A138: 128 | B138: 酱瓜 | C138: 永超、豫盛威及同档次以上 | D138: 产品保质期不得少于出厂保质期的三分之二 | E138: 2.5KG | F138: 箱 | G138: 50 | H138: 50 | I138: 100 | J138: 200 | M138: 固定单价
A139: 129 | B139: 糖蒜 | C139: 泇河小菜及同档次以上 | D139: 产品保质期不得少于出厂保质期的三分之二 | E139: 散称 | F139: 斤 | G139: 100 | H139: 100 | I139: 100 | J139: 300 | M139: 固定单价
A140: 130 | B140: 脆菜心 | C140: 乌江及同档次以上 | D140: 产品保质期不得少于出厂保质期的三分之二 | E140: 500克 | F140: 包 | G140: 100 | H140: 100 | I140: 100 | J140: 300 | M140: 固定单价
A141: 131 | B141: 外婆菜 | C141: 湘西及同档次以上 | D141: 产品保质期不得少于出厂保质期的三分之二 | E141: 5KG | F141: 箱 | G141: 30 | H141: 30 | I141: 30 | J141: 90 | M141: 固定单价
A142: 132 | B142: 小蒋榨菜 | C142: 小蒋及同档次以上 | D142: 产品保质期不得少于出厂保质期的三分之二 | E142: 102g*50包 | F142: 箱 | G142: 20 | H142: 20 | I142: 100 | J142: 140 | M142: 固定单价
L143: =SUM(L127:L142) -> 0
A144: 干货类（预算金额49.3万）
A145: 序号 | B145: 品名 | D145: 产品质量要求 | E145: 规格 | F145: 单位 | G145: 服务期内暂定数量（湖滨） | H145: 服务期内暂定数量（钱塘） | I145: 服务期内暂定数量（西溪） | J145: 合计用量 | K145: 预算单价（元） | L145: 合计金额（元） | M145: 备注
A146: 133 | B146: 紫菜 | C146: 散装 | D146: 一级 | F146: 斤 | G146: 30 | H146: 40 | I146: 50 | J146: =G146+H146+I146 -> 120 | M146: 固定单价
A147: 134 | B147: 红豆 | C147: 散装 | D147: 一级 | F147: 斤 | G147: 300 | H147: 300 | I147: 600 | J147: 1200 | M147: 固定单价
A148: 135 | B148: 红枣 | C148: 散装 | D148: 一级 | F148: 斤 | G148: 60 | H148: 60 | I148: 40 | J148: 160 | M148: 固定单价
A149: 136 | B149: 红皮花生米 | C149: 散装 | D149: 一级 | F149: 斤 | G149: 100 | H149: 100 | I149: 100 | J149: 300 | M149: 固定单价
A150: 137 | B150: 花生米 | C150: 散装 | D150: 一级 | F150: 斤 | G150: 1100 | H150: 1100 | I150: 500 | J150: 2700 | M150: 固定单价
A151: 138 | B151: 无核干桂圆肉 | C151: 散装 | D151: 一级 | F151: 斤 | G151: 40 | H151: 40 | I151: 20 | J151: 100 | M151: 固定单价
A152: 139 | B152: 无核红枣 | C152: 散装 | D152: 一级 | F152: 斤 | G152: 140 | H152: 80 | I152: 50 | J152: 270 | M152: 固定单价
A153: 140 | B153: 无心莲子 | C153: 散装 | D153: 一级 | F153: 斤 | G153: 80 | H153: 60 | I153: 40 | J153: 180 | M153: 固定单价
A154: 141 | B154: 枸杞 | C154: 散装 | D154: 一级 | F154: 斤 | G154: 30 | H154: 30 | I154: 15 | J154: 75 | M154: 固定单价
A155: 142 | B155: 黑豆 | C155: 散装 | D155: 一级 | F155: 斤 | G155: 100 | H155: 80 | I155: 300 | J155: 480 | M155: 固定单价
A156: 143 | B156: 黑米 | C156: 散装 | D156: 一级 | F156: 斤 | G156: 700 | H156: 700 | I156: 500 | J156: 1900 | M156: 固定单价
A157: 144 | B157: 绿豆 | C157: 散装 | D157: 一级 | F157: 斤 | G157: 200 | H157: 80 | I157: 600 | J157: 880 | M157: 固定单价
A158: 145 | B158: 脱皮绿豆 | C158: 散装 | D158: 一级 | F158: 斤 | G158: 100 | H158: 80 | I158: 100 | J158: 280 | M158: 固定单价
A159: 146 | B159: 小米 | C159: 散装 | D159: 一级 | F159: 斤 | G159: 700 | H159: 400 | I159: 500 | J159: 1600 | M159: 固定单价
A160: 147 | B160: 银耳 | C160: 散装 | D160: 一级 | F160: 斤 | G160: 30 | H160: 50 | I160: 50 | J160: 130 | M160: 固定单价
A161: 148 | B161: 紫米 | C161: 散装 | D161: 一级 | F161: 斤 | G161: 500 | H161: 200 | I161: 300 | J161: 1000 | M161: 固定单价
A162: 149 | B162: 八宝米 | C162: 散装 | D162: 一级 | F162: 斤 | G162: 150 | H162: 100 | I162: 300 | J162: 550 | M162: 固定单价
A163: 150 | B163: 白芝麻 | C163: 散装 | D163: 一级 | F163: 斤 | G163: 500 | H163: 200 | I163: 200 | J163: 900 | M163: 固定单价
A164: 151 | B164: 黑芝麻 | C164: 散装 | D164: 一级 | F164: 斤 | G164: 100 | H164: 100 | I164: 50 | J164: 250 | M164: 固定单价
A165: 152 | B165: 腰果 | C165: 散装 | D165: 一级 | F165: 斤 | G165: 50 | H165: 50 | I165: 50 | J165: 150 | M165: 固定单价
A166: 153 | B166: 熟腰果 | C166: 散装 | D166: 一级 | F166: 斤 | G166: 30 | H166: 30 | I166: 20 | J166: 80 | M166: 固定单价
A167: 154 | B167: 干木耳 | C167: 散装 | D167: 一级 | F167: 斤 | G167: 300 | H167: 300 | I167: 150 | J167: 750 | M167: 固定单价
A168: 155 | B168: 小干木耳 | C168: 散装 | D168: 一级 | F168: 斤 | G168: 30 | H168: 30 | I168: 30 | J168: 90 | M168: 固定单价
A169: 156 | B169: 干香菇 | C169: 散装 | D169: 一级 | F169: 斤 | G169: 500 | H169: 400 | I169: 100 | J169: 1000 | M169: 固定单价
A170: 157 | B170: 干豇豆 | C170: 散装 | D170: 一级 | F170: 斤 | G170: 500 | H170: 400 | I170: 100 | J170: 1000 | M170: 固定单价
A171: 158 | B171: 干茶树菇 | C171: 散装 | D171: 一级 | F171: 斤 | G171: 500 | H171: 400 | I171: 100 | J171: 1000 | M171: 固定单价
A172: 159 | B172: 虫草花 | C172: 散装 | D172: 一级 | E172: 350g | F172: 包 | G172: 100 | H172: 50 | I172: 60 | J172: 210 | M172: 固定单价
A173: 160 | B173: 干桑葚 | C173: 散装 | D173: 一级 | F173: 斤 | G173: 20 | H173: 20 | I173: 10 | J173: 50 | M173: 固定单价
A174: 161 | B174: 番薯粉丝 | C174: 散装 | D174: 一级 | F174: 斤 | G174: 1700 | H174: 1700 | I174: 600 | J174: 4000 | M174: 固定单价
A175: 162 | B175: 干粉条 | C175: 散装 | D175: 一级 | F175: 斤 | G175: 400 | H175: 300 | I175: 300 | J175: 1000 | M175: 固定单价
A176: 163 | B176: 米粉干 | C176: 散装 | D176: 一级 | F176: 斤 | G176: 200 | H176: 300 | I176: 500 | J176: 1000 | M176: 固定单价
A177: 164 | B177: 圆饼粉干 | C177: 散装 | D177: 一级 | F177: 斤 | G177: 260 | H177: 100 | I177: 120 | J177: 480 | M177: 固定单价
A178: 165 | B178: 龙口粉丝 | C178: 散装 | D178: 一级 | E178: 500g | F178: 包 | G178: 100 | H178: 80 | I178: 50 | J178: 230 | M178: 固定单价
A179: 166 | B179: 腐竹 | C179: 散装 | D179: 一级 | F179: 斤 | G179: 500 | H179: 500 | I179: 200 | J179: 1200 | M179: 固定单价
A180: 167 | B180: 小米粉 | C180: 散装 | D180: 一级 | F180: 斤 | G180: 50 | H180: 50 | I180: 30 | J180: 130 | M180: 固定单价
A181: 168 | B181: 黑米粉 | C181: 散装 | D181: 一级 | F181: 斤 | G181: 60 | H181: 60 | I181: 50 | J181: 170 | M181: 固定单价
A182: 169 | B182: 血糯米 | C182: 散装 | D182: 一级 | E182: 500g | F182: 包 | G182: 50 | H182: 50 | I182: 60 | J182: 160 | M182: 固定单价
A183: 170 | B183: 玉米粉 | C183: 散装 | D183: 一级 | F183: 斤 | G183: 60 | H183: 60 | I183: 50 | J183: 170 | M183: 固定单价
A184: 171 | B184: 临安笋干 | C184: 散装 | D184: 一级 | F184: 斤 | G184: 1000 | H184: 800 | I184: 300 | J184: 2100 | M184: 固定单价
A185: 172 | B185: 葡萄干 | C185: 散装 | D185: 一级 | F185: 斤 | G185: 90 | H185: 50 | I185: 30 | J185: 170 | M185: 固定单价
A186: 173 | B186: 干话梅 | C186: 散装 | D186: 一级 | F186: 斤 | G186: 30 | H186: 20 | I186: 10 | J186: 60 | M186: 固定单价
A187: 174 | B187: 芸豆 | C187: 散装 | D187: 一级 | F187: 斤 | G187: 30 | H187: 30 | I187: 50 | J187: 110 | M187: 固定单价
A188: 175 | B188: 粽叶 | C188: 散装 | D188: 一级 | F188: 斤 | G188: 20 | H188: 20 | I188: 10 | J188: 50 | M188: 固定单价
A189: 176 | B189: 虾皮 | C189: 散装 | D189: 一级 | F189: 斤 | G189: 60 | H189: 60 | I189: 50 | J189: 170 | M189: 固定单价
A190: 177 | B190: 虾片 | C190: 散装 | D190: 一级 | F190: 斤 | G190: 30 | H190: 30 | I190: 20 | J190: 80 | M190: 固定单价
A191: 178 | B191: 万年青 | C191: 散装 | D191: 一级 | E191: 350g | F191: 包 | G191: 200 | H191: 100 | I191: 150 | J191: 450 | M191: 固定单价
A192: 179 | B192: 人参花 | C192: 散装 | D192: 一级 | F192: 斤 | G192: 10 | H192: 5 | I192: 5 | J192: 20 | M192: 固定单价
A193: 180 | B193: 干桂花 | C193: 散装 | D193: 一级 | F193: 斤 | G193: 5 | H193: 5 | I193: 5 | J193: 15 | M193: 固定单价
A194: 181 | B194: 干茉莉花 | C194: 散装 | D194: 一级 | F194: 斤 | G194: 10 | H194: 5 | I194: 5 | J194: 20 | M194: 固定单价
A195: 182 | B195: 红枣片 | C195: 散装 | D195: 一级 | F195: 斤 | G195: 10 | H195: 10 | I195: 10 | J195: 30 | M195: 固定单价
A196: 183 | B196: 红糖 | C196: 散装 | D196: 一级 | F196: 斤 | G196: 30 | H196: 30 | I196: 50 | J196: 110 | M196: 固定单价
A197: 184 | B197: 冰糖 | C197: 散装 | D197: 一级 | F197: 斤 | G197: 100 | H197: 100 | I197: 30 | J197: 230 | M197: 固定单价
A198: 185 | B198: 土冰糖 | C198: 散装 | D198: 一级 | F198: 斤 | G198: 130 | H198: 100 | I198: 60 | J198: 290 | M198: 固定单价
A199: 186 | B199: 大黄米 | C199: 散装 | D199: 一级 | F199: 斤 | G199: 100 | H199: 100 | I199: 100 | J199: 300 | M199: 固定单价
A200: 187 | B200: 梅干菜 | C200: 散装 | D200: 一级 | F200: 斤 | G200: 800 | H200: 800 | I200: 500 | J200: 2100 | M200: 固定单价
A201: 188 | B201: 干辣椒段 | C201: 散装 | D201: 一级 | F201: 斤 | G201: 440 | H201: 400 | I201: 120 | J201: 960 | M201: 固定单价
... 778 more rows

Sheet Sheet2

Sheet Sheet3
